Cogmind - Beta 15 @@@ ROGUE MODE // 2025.05.15 @ 01:21:06 Player: Cereal Killer Result: Destroyed by L-31 Rogue with Katana Performance ------------- Evolutions (2) 1000 Regions Visited (8) 1600 Robots Destroyed (83) 415 Value Destroyed (3908) 3908 Prototype IDs (36) 720 Alien Tech Used (0) 0 Bonus (1023) 1023 TOTAL SCORE: 8666 Bonus ------- High Alert Combat Kills 323 Entered Garrisons 400 Aligned with FarCom 300 Cogmind --------- Core Integrity 0/550 Matter 215/300 Energy 275/280 System Corruption 2% Temperature Cool (0) Movement Rolling (110) Ox2 Location -8/Garrison Parts ------- > --- POWER (1) -------- Heavy Ion Engine > --- PROPULSION (2) --- Wheel > --- UTILITY (6) ------ Large Storage Unit Advanced Targeting Computer Core Analyzer Core Analyzer > --- WEAPON (2) ------- Katana > --- INVENTORY (15) --- Deuterium Engine Improved Cooling System Improved Cooling System Compact Matter Pod (150) Trap Scanner Experimental Sensor Array Transmission Jammer Hacking Suite Firepult Missile Launcher Peak State ------------ > --- POWER ------------ Deuterium Engine > --- PROPULSION ------- Compact Wheel > --- UTILITY ---------- Improved Heat Sink Large Storage Unit Improved Terrain Scan Processor Core Analyzer Core Analyzer Core Analyzer > --- WEAPON ----------- Firepult > --- INVENTORY -------- Light Treads Improved Heat Sink Medium Storage Unit Compact Matter Pod Structural Scanner Trap Scanner Experimental Sensor Array Improved Terrain Scanner Melee Analysis Suite Particle Gun Light Assault Rifle Shock Bomb Launcher [Rating: 46] Favorites ----------- Power Cooled Ion Engine Engine Cooled Ion Engine Power Core Light Nuclear Core Propulsion Compact Wheel Treads Light Treads Wheel Compact Wheel Utility Core Analyzer Device Improved Heat Sink Storage Large Storage Unit Processor Core Analyzer Protection Weapon Shielding Weapon Gatling Laser Energy Gun Gatling Laser Energy Cannon Firepult Ballistic Gun Assault Rifle Ballistic Cannon Assault Cannon Launcher Shock Bomb Launcher Special Weapon Mining Laser Slashing Weapon Katana Build | -11 -10 -10 -10 -9 -8 -8 -8 -8 ------- Run | Yrd Mat Min Exi Min Mat Gar Mat Gar Slots Evolved 4 | . . . . . 4 . . . Power . | . . . . . . . . . Propulsion . | . . . . . . . . . Utility 4 | . . . . . 4 . . . Weapon . | . . . . . . . . . Parts Attached 64 | 6 . 2 . 4 12 16 20 4 Power 8 | 1 . 1 . 1 1 2 2 . Engine 6 | 1 . 1 . 1 . 1 2 . Core 2 | . . . . . 1 1 . . Reactor . | . . . . . . . . . Propulsion 13 | 2 . . . 3 1 3 3 1 Treads 4 | . . . . 2 . 2 . . Leg . | . . . . . . . . . Wheel 9 | 2 . . . 1 1 1 3 1 Hover . | . . . . . . . . . Flight . | . . . . . . . . . Utility 21 | 1 . 1 . . 7 5 6 1 Device 8 | . . . . . 4 2 2 . Storage 2 | 1 . . . . 1 . . . Processor 5 | . . . . . 1 3 1 . Hackware . | . . . . . . . . . Protection 6 | . . 1 . . 1 . 3 1 Artifact . | . . . . . . . . . Weapon 22 | 2 . . . . 3 6 9 2 Energy Gun 10 | 2 . . . . . 2 6 . Energy Cannon 1 | . . . . . . 1 . . Ballistic Gun 5 | . . . . . 1 2 2 . Ballistic Cannon 1 | . . . . . 1 . . . Launcher 3 | . . . . . . 1 1 1 Special Weapon 1 | . . . . . 1 . . . Impact Weapon . | . . . . . . . . . Slashing Weapon 1 | . . . . . . . . 1 Piercing Weapon . | . . . . . . . . . Special Melee Weapon . | . . . . . . . . . Unidentified Prototypes 7 | . . . . . 1 . 6 . Parts Lost 27 | . . . . 8 1 8 3 7 Power 4 | . . . . 2 . 1 . 1 Propulsion 9 | . . . . 4 . 3 . 2 Utility 7 | . . . . . 1 1 2 3 Weapon 7 | . . . . 2 . 3 1 1 Highest Loss Streak 5 | . . . . 5 1 2 1 3 To Critical Strikes . | . . . . . . . . . Average Backups 11 | 2 4 7 7 6 7 13 13 13 Power 1 | . 1 1 1 1 1 . 1 1 Propulsion 1 | 1 2 2 2 1 . 2 1 . Utility 5 | . . 2 2 2 3 7 7 7 Weapon 2 | . 1 2 2 2 1 2 3 2 Tool/Special . | . . . . . . . . . Unused Backups 21 | . . 2 2 . . 3 9 5 Power 5 | . . 2 1 . . . 2 . Propulsion 3 | . . . . . . 1 2 . Utility 10 | . . . . . . 2 3 5 Weapon 3 | . . . 1 . . . 2 . Tool/Special . | . . . . . . . . . Average Slot Usage (%) 90 | . 85 86 100 75 75 86 99 93 Engine 6 | . 14 14 14 9 . 2 9 8 Core 2 | . . . . . 4 6 . . Treads 2 | . . . . 19 . 7 . . Wheel 15 | . 28 28 28 3 13 7 17 15 Device 10 | . . . . . 20 6 17 9 Storage 9 | . 14 14 14 14 9 9 9 9 Processor 16 | . . . . . 5 27 19 27 Protection 6 | . . 1 14 14 9 2 7 7 Energy Gun 10 | . 28 28 28 14 . 3 13 6 Ballistic Gun 4 | . . . . . 4 5 4 7 Ballistic Cannon 1 | . . . . . 3 5 . . Peak Build Rating 46 | 6 6 8 10 10 31 46 39 39 Average Rating 27 | 4 6 6 9 8 22 29 36 36 On Entrance 14 | . 6 6 8 10 6 25 31 39 Naked Turns . | . . . . . . . . . Heaviest Build 49 | 12 12 15 15 13 39 40 49 42 Greatest Support 40 | 32 32 32 32 40 26 40 28 22 Greatest Overweight (x) 3 | . . . . 1 1 3 2 3 Average Overweight (x) . | . . . . . . 1 1 1 Largest Inventory Capacity 15 | 8 8 8 8 8 15 15 15 15 Average Capacity 13 | 5 8 8 8 8 10 15 15 15 Most Carried 15 | 5 7 8 8 8 13 15 15 15 Average Carried 12 | 2 4 7 7 7 8 14 14 14 Final Capacity 15 | 8 8 8 8 8 15 15 15 15 Final Carried 15 | 4 7 8 8 7 13 15 15 11 Class Distribution -------------------- 80% | Mutant 10% | Skirmisher 9% | Scavenger-Mutant Dominant Class ---------------- Mutant | -10/Materials Mutant | -10/Mines Mutant | -10/Exiles Mutant | -9/Mines Skirmisher | -8/Materials Mutant | -8/Garrison Mutant | -8/Materials Mutant | -8/Garrison Resources | -11 -10 -10 -10 -9 -8 -8 -8 -8 ----------- Run | Yrd Mat Min Exi Min Mat Gar Mat Gar Matter Collected 2066 | 197 . 173 10 30 78 1017 423 138 Remotely . | . . . . . . . . . Salvage Created 3170 | . . 202 . 122 61 1143 1119 523 Parts 164 | . . 8 . 5 5 43 67 36 Haulers Intercepted 4 | . . . . . . . 4 . Recyclers Shooed . | . . . . . . . . . Parts Field Recycled . | . . . . . . . . . Retrieved Matter . | . . . . . . . . . Parts Self-Destructed . | . . . . . . . . . Prevented . | . . . . . . . . . Kills | -11 -10 -10 -10 -9 -8 -8 -8 -8 ------- Run | Yrd Mat Min Exi Min Mat Gar Mat Gar Combat Hostiles Destroyed 70 | . . 4 . 3 1 26 20 16 Melee 3 | . . . . . . . . 3 Guns 45 | . . 4 . 3 . 8 20 10 Cannons 9 | . . . . . 1 8 . . AOE 11 | . . . . . . 8 . 3 Classes Destroyed 10 | . . 1 . . 1 5 2 1 Worker 5 | . . . . . . . 5 . Builder 2 | . . . . . 1 . 1 . Hauler 4 | . . . . . . . 4 . Watcher 2 | . . . . . . 1 1 . Swarmer 13 | . . . . . . 4 5 4 Grunt 38 | . . 4 . 3 1 17 9 4 Brawler 2 | . . . . . . 2 . . Duelist 5 | . . . . . . 1 . 4 Sentry 9 | . . . . . . 2 6 1 Programmer 3 | . . . . . . . . 3 Best Kill Streak 10 | . . 2 . 3 1 5 8 10 Combat Bots Only 10 | . . 2 . 3 1 3 6 10 Max Kills in Single Turn 2 | . . 1 . 1 1 2 2 2 Gunslinging 1 | . . . . . . . . 1 Exploded 2 | . . . . . . 2 . 1 Melee 1 | . . . . . . . . 1 Uniques/NPCs Destroyed . | . . . . . . . . . Combat | -11 -10 -10 -10 -9 -8 -8 -8 -8 -------- Run | Yrd Mat Min Exi Min Mat Gar Mat Gar Hostile Shots Fired 320 | . 1 14 . 27 28 111 55 84 Missed 89 | . . 7 . 1 6 33 23 19 Hits 231 | . 1 7 . 26 22 78 32 65 Melee 7 | . . . . . . 1 . 6 Projectile 224 | . 1 7 . 26 22 77 32 59 AOE 15 | . . . . 15 . . . . Critical Strikes 12 | . . . . . 1 3 2 6 Actively Blocked 4 | . . . . . 1 . . 3 Damage Taken 4013 | . 13 97 . 795 313 1172 550 1073 Core 805 | . . . . 244 68 211 32 250 Absorbed by Shields . | . . . . . . . . . Redirected to Shielding 154 | . . . . 16 34 . . 104 Ignored by Resistances 139 | . . . . . 44 81 14 . Core Remaining (%) 51 | 100 . . . 2 . . . . Volleys Fired 226 | . . 10 . 7 28 101 54 26 Largest 2 | . . 2 . 2 2 2 2 2 Hottest 250 | . . 80 . 80 120 250 160 105 Shots Fired 384 | . . 20 . 11 45 154 108 46 Gun 294 | . . 20 . 11 28 85 108 42 Cannon 65 | . . . . . 16 49 . . Launcher 24 | . . . . . . 20 . 4 Special 1 | . . . . . 1 . . . Kinetic 202 | . . . . . 44 94 39 25 Thermal 127 | . . . . . 1 40 69 17 Explosive 4 | . . . . . . . . 4 Electromagnetic 51 | . . 20 . 11 . 20 . . Robot Hit Streak 14 | . . 7 . 3 5 12 12 14 Robot Miss Streak 6 | . . 2 . 1 3 4 6 4 Penetration Max . | . . . . . . . . . Secondary Targets 8 | . . 1 . 1 . 1 2 3 Max Gunslinging Chain 1 | . . 1 . 1 . 1 1 1 Shots Hit Robots 250 | . . 15 . 8 23 82 74 48 Core Hits 170 | . . 8 . 8 6 48 66 34 Critical Kills 2 | . . . . . . 1 . 1 Critical Parts Destroyed . | . . . . . . . . . Critical Strikes 3 | . . . . . . 2 . 1 Burn 1 | . . . . . . 1 . . Destroy 2 | . . . . . . 1 . 1 Melee Attacks 12 | . . . . . . . . 12 Impact . | . . . . . . . . . Slashing 12 | . . . . . . . . 12 Piercing . | . . . . . . . . . Sneak Attacks . | . . . . . . . . . Combat Hostiles . | . . . . . . . . . Follow-up Attacks . | . . . . . . . . . Damage Inflicted 5870 | . . 204 . 223 390 2094 1451 1508 Guns 3351 | . . 204 . 131 194 631 1451 740 Cannons 858 | . . . . . 196 662 . . Explosions 1266 | . . . . 92 . 801 . 373 Melee 395 | . . . . . . . . 395 Ramming . | . . . . . . . . . Kinetic 1954 | . . . . . 390 890 308 366 Thermal 2144 | . . . . 92 . 535 1143 374 Explosive 373 | . . . . . . . . 373 Electromagnetic 1004 | . . 204 . 131 . 669 . . Impact . | . . . . . . . . . Slashing 395 | . . . . . . . . 395 Piercing . | . . . . . . . . . Highest Corruption 2 | . . . . . . . . 2 Average Corruption 1 | . . . . . . . . 1 Corruption Purged . | . . . . . . . . . Corruption Blocked . | . . . . . . . . . Effects 2 | . . . . . . . . 2 Message Errors 1 | . . . . . . . . 1 Matter Fused 1 | . . . . . . . . 1 Overload Shots . | . . . . . . . . . Overflow Damage 94 | . . . . . . 28 38 28 Projectiles 27 | . . . . . . 27 . . Explosions 56 | . . . . . . 1 38 17 Melee 11 | . . . . . . . . 11 Knockbacks 7 | . . . . . 2 5 . . Impact . | . . . . . . . . . Kinetic 7 | . . . . . 2 5 . . Secondary . | . . . . . . . . . Self-Inflicted Damage 263 | . . . . . . 78 156 29 Shots 8 | . . . . . . 5 2 1 Rammed . | . . . . . . . . . Targets Rammed . | . . . . . . . . . Kicked . | . . . . . . . . . Crushed . | . . . . . . . . . Highest Temperature 182 | . . 180 . 126 66 181 182 15 Average Temperature 43 | . . 79 . 81 31 32 47 6 Received Heat Transfer 1416 | . 9 54 . 84 198 612 171 288 Siege Activations . | . . . . . . . . . Martial Activations . | . . . . . . . . . Shielding Activations . | . . . . . . . . . Robots Disrupted . | . . . . . . . . . Combat Hostiles . | . . . . . . . . . Robots Corrupted 1 | . . . . . . 1 . . Combat Hostiles 1 | . . . . . . 1 . . Parts Fried 3 | . . 2 . . . 1 . . Impact Corruptions . | . . . . . . . . . Robots Melted 1 | . . . . . . 1 . . Combat Hostiles 1 | . . . . . . 1 . . Parts Melted 10 | . . . . . . 8 2 . Heat Transferred 5093 | . . . . 150 . 1682 2536 725 Parts Sabotaged . | . . . . . . . . . Parts Stolen . | . . . . . . . . . Parts Stripped . | . . . . . . . . . Power Chain Reactions 2 | . . . . 1 . 1 . . Alert | -11 -10 -10 -10 -9 -8 -8 -8 -8 ------- Run | Yrd Mat Min Exi Min Mat Gar Mat Gar Maximum Alert Level 3 | . . . . . . 3 2 2 Low Security (%) 36 | 100 100 100 . 100 100 26 . . Level 1 36 | . . . . . . 8 85 64 Level 2 19 | . . . . . . 37 14 35 Level 3 8 | . . . . . . 28 . . Level 4 . | . . . . . . . . . Level 5 . | . . . . . . . . . High Security . | . . . . . . . . . Max Security . | . . . . . . . . . Peak Influence 950 | . 5 50 . 55 59 950 527 695 Initial 462 | . . . . . . 22 462 252 Average 282 | . . 8 . 25 5 464 319 414 Influence Increases 2498 | . 5 100 . 85 87 1028 690 503 Destroy 0b10 Robot/C 1400 | . . 80 . 60 20 520 400 320 Destroy 0b10 Robot/NC 65 | . . . . . 5 5 55 . Destroy Leader 200 | . . 20 . 10 10 20 110 30 Successful Hack 49 | . 5 . . . 3 7 18 16 Disable Machine 105 | . . . . 15 . 30 60 . Anti-Garrison Action 400 | . . . . . . 350 . 50 Destroy Structure 99 | . . . . . 4 51 17 27 Lose Combat Pursuer 180 | . . . . . 45 45 30 60 Influence Decreases 1813 | . 5 100 . 85 53 112 1251 207 Entered New Map 637 | . . . . . . 12 488 137 Time Decay 771 | . 5 100 . 40 43 . 583 . Lost Part 235 | . . . . 45 10 80 30 70 Lost Ally 20 | . . . . . . 20 . . Purge Threat 150 | . . . . . . . 150 . Squads Dispatched 2 | . . . . . . . 2 . Investigation . | . . . . . . . . . Extermination . | . . . . . . . . . Reinforcement 2 | . . . . . . . 2 . Assault . | . . . . . . . . . Garrison . | . . . . . . . . . Intercept . | . . . . . . . . . Searches Triggered . | . . . . . . . . . Construction Impeded . | . . . . . . . . . Haulers Reinforced . | . . . . . . . . . Active Scanning Responses . | . . . . . . . . . Cargo Convoy Interrupts . | . . . . . . . . . Stealth | -11 -10 -10 -10 -9 -8 -8 -8 -8 --------- Run | Yrd Mat Min Exi Min Mat Gar Mat Gar Distress Signals 6 | . 1 . . . . 1 4 . Communications Jammed . | . . . . . . . . . Distress Signals . | . . . . . . . . . Times Spotted 99 | . 3 3 . 5 9 30 30 19 Peak Tracking Total 5 | . 3 2 . 2 4 5 5 4 Tactical Retreats 8 | . . . . . 1 3 2 2 Traps | -11 -10 -10 -10 -9 -8 -8 -8 -8 ------- Run | Yrd Mat Min Exi Min Mat Gar Mat Gar Traps Triggered 4 | . . . . . . 3 . 1 Indirectly 1 | . . . . . . 1 . . Trap Hack Attempts . | . . . . . . . . . Triggered . | . . . . . . . . . Disarmed . | . . . . . . . . . Reprogrammed . | . . . . . . . . . Reused . | . . . . . . . . . Traps Extracted . | . . . . . . . . . Installed . | . . . . . . . . . Triggered . | . . . . . . . . . Machines | -11 -10 -10 -10 -9 -8 -8 -8 -8 ---------- Run | Yrd Mat Min Exi Min Mat Gar Mat Gar Machines Disabled 12 | . . . . 1 . 6 4 1 Max in Single Turn 4 | . . . . 1 . 1 4 1 Garrison Relay 5 | . . . . . . 4 . 1 Machines Repaired . | . . . . . . . . . Machines Dismantled . | . . . . . . . . . Machines Sabotaged . | . . . . . . . . . Overloaded Fab Kills . | . . . . . . . . . Hacking | -11 -10 -10 -10 -9 -8 -8 -8 -8 --------- Run | Yrd Mat Min Exi Min Mat Gar Mat Gar Machines Accessed 19 | . 1 . 2 . 3 3 9 1 Terminals 14 | . 1 . . . 2 3 7 1 Fabricators . | . . . . . . . . . Repair Stations . | . . . . . . . . . Recycling Units . | . . . . . . . . . Scanalyzers 1 | . . . . . . . 1 . Garrison Access 2 | . . . . . 1 . 1 . Total Hacks 45 | . 3 . 2 . 4 5 29 2 Successful 20 | . 2 . 2 . 2 1 12 1 Failed 25 | . 1 . . . 2 4 17 1 Catastrophic 4 | . . . . . 1 1 2 . Database Lockouts . | . . . . . . . . . Manual 16 | . 2 . 1 . 2 . 11 . Terminals 39 | . 3 . . . 3 5 26 2 Fabricators . | . . . . . . . . . Repair Stations . | . . . . . . . . . Recycling Units . | . . . . . . . . . Scanalyzers 2 | . . . . . . . 2 . Garrison Access 2 | . . . . . 1 . 1 . Terminal Hacks 14 | . 2 . 2 . . 1 8 1 Record 2 | . . . 1 . . . 1 . Robot Analysis 3 | . 1 . . . . . 2 . Prototype ID Bank 3 | . 1 . . . . . 2 . Open Door 1 | . . . . . . 1 . . Branch Access Points 1 | . . . . . . . 1 . Alert Level 1 | . . . . . . . 1 . Unreport Threat 1 | . . . . . . . 1 . Security Stations 1 | . . . . . . . . 1 Proto ID Catalog 1 | . . . 1 . . . . . Fabricator Hacks . | . . . . . . . . . Repair Station Hacks . | . . . . . . . . . Recycling Unit Hacks . | . . . . . . . . . Scanalyzer 1 | . . . . . . . 1 . Insert Component 1 | . . . . . . . 1 . Garrison Access Hacks 2 | . . . . . 1 . 1 . Unlock Access 2 | . . . . . 1 . 1 . Unauthorized Hacks 3 | . . . . . 1 . 2 . Terminals 3 | . . . . . 1 . 2 . Botnet 3 | . . . . . 1 . 2 . Fabricators . | . . . . . . . . . Repair Stations . | . . . . . . . . . Recycling Units . | . . . . . . . . . Scanalyzers . | . . . . . . . . . Garrison Access . | . . . . . . . . . Data Cores Recovered . | . . . . . . . . . Used . | . . . . . . . . . Hacking Detections 13 | . 1 . . . 2 2 7 1 Full Trace Events 2 | . . . . . . 1 1 . Feedback Events . | . . . . . . . . . Feedback Blocked . | . . . . . . . . . Robot Schematics Acquired . | . . . . . . . . . Robots Built . | . . . . . . . . . Authchips . | . . . . . . . . . Time . | . . . . . . . . . Total Robot Build Rating . | . . . . . . . . . Part Schematics Acquired . | . . . . . . . . . Parts Built . | . . . . . . . . . Authchips . | . . . . . . . . . Time . | . . . . . . . . . Total Part Build Rating . | . . . . . . . . . Parts Repaired . | . . . . . . . . . Time . | . . . . . . . . . Parts Recycled . | . . . . . . . . . Recycled Matter . | . . . . . . . . . Retrieved Matter . | . . . . . . . . . Retrieved Components . | . . . . . . . . . Parts Scanalyzed . | . . . . . . . . . Part Schematics Acquired . | . . . . . . . . . Parts Damaged . | . . . . . . . . . Bothacking | -11 -10 -10 -10 -9 -8 -8 -8 -8 ------------ Run | Yrd Mat Min Exi Min Mat Gar Mat Gar Used RIF Installer . | . . . . . . . . . Robots Hacked . | . . . . . . . . . Non-combat . | . . . . . . . . . Combat . | . . . . . . . . . Robot Hacks Applied . | . . . . . . . . . Relay Couplers Released 18 | . . . . . . 15 . 3 Machine Destruction 18 | . . . . . . 15 . 3 Fabnet Peak Effective % . | . . . . . . . . . Robots Rewired . | . . . . . . . . . Allies Hacked . | . . . . . . . . . Hacks Repelled . | . . . . . . . . . Allies | -11 -10 -10 -10 -9 -8 -8 -8 -8 -------- Run | Yrd Mat Min Exi Min Mat Gar Mat Gar Total Allies 1 | . . . . . . 1 . . Largest Group 1 | . . . . . . 1 . . Highest-Rated Group 31 | . . . . . . 31 . . Highest-Rated Ally 31 | . . . . . . 31 . . Initial Warlord ECA Mod 20 | . . . . . . . 10 10 Total Orders . | . . . . . . . . . Ally Attacks 3 | . . . . . . 3 . . Total Damage 62 | . . . . . . 62 . . Kills . | . . . . . . . . . Allies Corrupted . | . . . . . . . . . Allies Melted . | . . . . . . . . . Intel | -11 -10 -10 -10 -9 -8 -8 -8 -8 ------- Run | Yrd Mat Min Exi Min Mat Gar Mat Gar Active Infowar (turns) 2452 | . . . . . 658 2 1792 . Sensors 431 | . . . . . 431 . . . Terrain 813 | . . . . . 627 2 184 . Structural 229 | . . . . . 227 2 . . Traps 1763 | . . . . . 155 . 1608 . Robot Analysis Total 3 | . 1 . . . . . 2 . Derelict Logs Recovered 2 | . . 2 . . . . . . Drone Launches . | . . . . . . . . . Drone Recoveries . | . . . . . . . . . Exploration | -11 -10 -10 -10 -9 -8 -8 -8 -8 ------------- Run | Yrd Mat Min Exi Min Mat Gar Mat Gar Turns Passed 5850 | 57 112 487 345 109 791 1667 1818 464 Spaces Moved 3909 | 46 110 445 343 53 613 976 1036 287 Core 9 | 8 . . . 1 . . . . Treads 362 | . . . . 51 . 311 . . Legs . | . . . . . . . . . Wheels 3538 | 38 110 445 343 1 613 665 1036 287 Hover . | . . . . . . . . . Flight . | . . . . . . . . . Fastest Speed 50 | 50 100 100 100 100 90 95 100 95 Average Speed 111 | 91 100 100 100 157 100 129 111 104 Slowest Speed 240 | 100 100 100 100 160 105 240 130 125 Overloaded Moves . | . . . . . . . . . Propulsion Burnouts . | . . . . . . . . . Robots Hopped . | . . . . . . . . . Potential Cave-ins . | . . . . . . . . . Cave-ins Triggered . | . . . . . . . . . Exploration Rate (%) 46 | 4 31 84 69 16 23 87 79 26 Regions Visited 8 Branch Regions 3 Pre-discovered Areas 2 | . . 1 1 . . . . . Known Exits Taken 2 | . . . . . 1 . 1 . Unknown Exits Taken 5 | 1 1 1 1 1 . . . . Scrap Searched 1 | . . 1 . . . . . . Spaces Dug 1 | . . . . . 1 . . . Terrain Destroyed 33 | . . . . . 3 1 17 12 Melee . | . . . . . . . . . Projectile 3 | . . . . . 3 . . . AOE 30 | . . . . . . 1 17 12 Terrain Rammed . | . . . . . . . . . Walls Destroyed . | . . . . . . . . . Machines Disabled . | . . . . . . . . . Actions | -11 -10 -10 -10 -9 -8 -8 -8 -8 --------- Run | Yrd Mat Min Exi Min Mat Gar Mat Gar Total 5012 | 61 112 471 345 66 740 1225 1600 392 Wait 641 | . . 6 . . 74 82 428 51 Move 3901 | 45 109 444 342 52 612 975 1035 287 Hop . | . . . . . . . . . Pick Up 68 | 10 3 5 1 2 12 14 21 . Fast Attach 13 | . . . . 1 3 3 6 . Attach 33 | 6 . 1 . 3 6 10 3 4 Detach 4 | . . . . . . 4 . . Swap 45 | . . 1 . 1 3 13 23 4 Drop 45 | . . 4 2 . 2 7 30 . Fire 226 | . . 10 . 7 28 101 54 26 Melee 12 | . . . . . . . . 12 Ram . | . . . . . . . . . Kick . | . . . . . . . . . Crush . | . . . . . . . . . Escape Stasis 24 | . . . . . . 16 . 8 Rewire . | . . . . . . . . . Trap . | . . . . . . . . . Miscellaneous . | . . . . . . . . . Route ------- -11/Scrapyard -10/Materials -10/Mines (discovered 2 exits: *Exi / [*Sub]) -10/Exiles -9/Mines -8/Materials (discovered 2 exits: [Fac] / Gar) -8/Garrison (discovered 3 exits: *Mat x3) -8/Materials (discovered 3 exits: [*Fac x2] / Gar) -8/Garrison History --------- Turn | Location | Event 37 | -11/Scrapyard | Discovered new exit (range 15) 58 | -11/Scrapyard | Entered Materials 148 | -10/Materials | Discovered new exit (range 15) 170 | -10/Materials | Entered Mines 277 | -10/Mines | Learned location of Zion (-7) 313 | -10/Mines | Build established: Mutant 353 | -10/Mines | Learned Materials stockpile data 549 | -10/Mines | Discovered new exit (range 4) 612 | -10/Mines | Found a damaged Exp. Sensor Array with a note attached 615 | -10/Mines | Found Prototype Device 652 | -10/Mines | Deemed a non-threat by the Exiles lab entrance 653 | -10/Mines | Discovered new exit (range 5) 657 | -10/Mines | Entered Exiles 681 | -10/Exiles | Met 8R-AWN 699 | -10/Exiles | Met EX-HEX 728 | -10/Exiles | Met EX-BIN 740 | -10/Exiles | Aligned with FarCom system 741 | -10/Exiles | Given EX-Vault access code 765 | -10/Exiles | Opened EX-Vault 775 | -10/Exiles | Found Firepult 797 | -10/Exiles | Warned to stay clear of 0b10 Research branches 824 | -10/Exiles | Met EX-DEC 881 | -10/Exiles | Discovered new exit (range 12) 1002 | -10/Exiles | Left Exiles lab with Firepult 1002 | -10/Exiles | Entered Mines 1043 | -9/Mines | Lost 3 parts (1p1n1w) 1075 | -9/Mines | Assembled infested the area 1099 | -9/Mines | Discovered new exit (range 9) 1102 | -9/Mines | Core integrity fell below 50% 1110 | -9/Mines | Core integrity fell below 20% 1111 | -9/Mines | Entered Materials 1111 | -8/Materials | Evolved 4 slots: Utility x4 1112 | -8/Materials | Identified Exp. Sensor Array 1140 | -8/Materials | Lost 5 parts (1p3n1w) 1573 | -8/Materials | Identified exit to Garrison 1715 | -8/Materials | Discovered new exit (range 14) 1773 | -8/Materials | Build established: Skirmisher 1902 | -8/Materials | Entered Garrison 2134 | -8/Garrison | Triggered checkpoint 2207 | -8/Garrison | Build established: Mutant 2211 | -8/Garrison | Garrison Relay disabled 2411 | -8/Garrison | Triggered checkpoint 2639 | -8/Garrison | Discovered new exit (range 15) 2718 | -8/Garrison | Triggered checkpoint 2766 | -8/Garrison | Garrison Relay disabled 2929 | -8/Garrison | Discovered new exit (range 15) 3014 | -8/Garrison | Triggered checkpoint 3018 | -8/Garrison | Build established: Scavenger-Mutant 3034 | -8/Garrison | Garrison Relay disabled 3111 | -8/Garrison | Rescued a captive Derelict 3162 | -8/Garrison | Triggered checkpoint 3279 | -8/Garrison | Discovered new exit (range 10) 3312 | -8/Garrison | Triggered checkpoint 3330 | -8/Garrison | Core integrity fell below 50% 3569 | -8/Garrison | Entered Materials 4038 | -8/Materials | Build established: Mutant 4727 | -8/Materials | Discovered new exit (range 9) 5282 | -8/Materials | Discovered new exit (range 11) 5386 | -8/Materials | Identified exit to Garrison 5387 | -8/Materials | Entered Garrison 5405 | -8/Garrison | Learned Materials security intel 5445 | -8/Garrison | Triggered checkpoint 5445 | -8/Garrison | Garrison Relay disabled 5687 | -8/Garrison | Triggered checkpoint 5687 | -8/Garrison | Triggered checkpoint 5693 | -8/Garrison | Triggered checkpoint 5703 | -8/Garrison | Triggered checkpoint 5746 | -8/Garrison | Lost 3 parts (2n1u) 5759 | -8/Garrison | Destroyed 10 combat bots 5766 | -8/Garrison | Core integrity fell below 20% 5811 | -8/Garrison | Lost 3 parts (1p1u1w) 5851 | -8/Garrison | Destroyed by L-31 Rogue with Katana Last Messages --------------- payload. 05751_ L-31 Rogue unfolds itself. 05751_ G-47 Trooper unfolds itself. 05760_ Gatling Laser destroyed. 05765_ Enh. Autogun severed. 05769_ PCG9=GP&/6PI=6K IB HXT/ X& 05778_ Cld. Ion Engine destroyed. 05780_ Insulated Plating destroyed. 05780_ Critical hit (Burn: +37). 05782_ ALERT: Dispatching investigation squad to Materials. 05783_ L-31 Rogue destroyed. 05786_ G-47 Trooper destroyed. 05807_ Acquired 36 matter. 05828_ Acquired 46 matter. 05841_ Sneak attack on C-30 ARC. 05846_ Destroyed Arm. Wheel. 05848_ Sneak attack on C-30 ARC. 05848_ Destroyed Arm. Wheel. 05851_ Imp. Cooling System destroyed. Map ----- +----------------------------------------------------+ | | | | | ?????????????????????????????????????????????????? | | ?????????????????????????????????????????????????? | | ?????????????????????????????????????????????????? | | ?????????????????????????????????????????????????? | | ?????????????????????????????????????????????????? | | ?????????????????????????????????????????????????? | | ?????????????????????????????????????????????????? | | ?????????????????????????????????????????????????? | | ?????????????????????????????????????????????????? | | ?????????????????????????????????????????????????? | | ?????????????????????????????????????????????????? | | ?????????????????????????????????????????????????? | | ?????????????????????????????????????????????????? | | ?????????????????????????????????????????????????? | | ?????????????????????????????????????????????????? | | ????????????????????????????######???????????????? | | ????????????????????????????"" ""#???????????????? | | ????????????????Y????????####!!!##???????????????? | | ?????????????????????????# #???????????????? | | ?????????????????????????# #######???????????????? | | ???????????????????????### #?????????######??????? | | ???????????????????????#C #?????????# #??????? | | ???????????????????????# #?????????# #??????? | | ???????????????????????#C@ #?????????# #??????? | | ???????????????????????###l#?????????# ###??????? | | ?????????????????????????# #?????????# #????????? | | ?????????????????????????#g#?????????# #????????? | | ?????????????????????????#g#####?????# #????????? | | ?????????????????????????# *[#?????# #????????? | | ?????????????????????????#####!#####?# #????????? | | ?????????????????????????????# ##""#?# #????????? | | ?????????????????????????#???#=##T #?# #????????? | | ?????????????????????????# ??#=##" #?# #????????? | | ??##???####??????#########+###!### ### #????????? | | ?? ??? #??????# !=%|! #????????? | | ?? ??? #??????# [! [! #????????? | | ??# #??# #??????# ######+## ##########????????? | | ??# #??# #??????# #????# ## #?????????????????? | | ??# #??# #??????#! #???? ## #?????????????????? | | ??# #??# #??????# ^#???# ### #?????????????????? | | ??# #??# ######## #???# ??# #?????????????????? | | ??# #### ## =%[##*%#???? ??# #?????????????????? | | ### # ##* =%##%!##??# ??# #?????????????????? | | ! *== =!=######## #?????????????????? | | %= ! [ #?????????????????? | | % % %%= #?????????????????? | | ###### %[ ## ###########?????????????????? | | ????### ## #???????????????????????????? | +----------------------------------------------------+ Best States ------------- Heat Dissipation 59 Energy Generation 14 Energy Capacity 280 Matter Stores 300 Matter Capacity 300 Sight Range 16 Robot Scan Range 20 Terrain Scan Range 16 Terrain Scan Density 110 Armor Coverage 150 Resistance: KI 20 Resistance: TH 10 Resistance: EM 15 Weapon Shielding 66 Evasion (%) 50 Targeting Accuracy 8 Core Analysis 9 Recoil Reduction 2 Item Schematics ----------------- None Robot Schematics ------------------ None Fabricated ------------ Nothing Repaired ---------- Nothing Alien Tech Used ----------------- None Achievements -------------- None Challenges ------------ None Game ------ Seed PiercingWeaponsPropulsion Manual? 0 Play Time 00:55:01 Cumulative 273.7 hours Start 2025.05.14 @ 21:29:30 End 2025.05.15 @ 01:21:06 Sessions 3 Manual Loads 0 Difficulty Rogue Special Mode None Game No. 216 Rogue 207 Adventurer 9 Explorer 0 Win Type - Total 3 Types 2/0/0/1/0/0/0/0/0/0 Lore% 84 Gallery% 71 Achievement% 64 Wizard Run 0 Options --------- Layout 1 ASCII 0 Keyboard 0 Movement Numpad Keybinds 0 Fullscreen 1 Font 24/Smallcaps Map View 50x35 Zoom Use 0% Tactical HUD 1 Map Filters NONE Filters NONE Steam 1 RUN: c202ca4a-3e4a-4f8a-8d38-e27969a271b8